[Event "*** SCC Grand Prix: Titled Tuesday Blitz"]
[Site "Chess.com"]
[Date "2020.06.09"]
[Round "2"]
[White "aRk_iN"]
[Black "awesomevishesh"]
[Result "0-1"]
[WhiteElo "2124"]
[BlackElo "2423"]
[TimeControl "180+1"]
[EndTime "9:17:09 PDT"]
[Termination "awesomevishesh won on time"]

1. d4 {[%clk 0:03:00.9]} 1... Nf6 {[%clk 0:02:59.6]} 2. Bg5 {[%clk 0:02:59.7]}
2... g6 {[%clk 0:02:58.5]} 3. Bxf6 {[%clk 0:02:58.7]} 3... exf6 {[%clk
0:02:59.4]} 4. e3 {[%clk 0:02:54.6]} 4... d5 {[%clk 0:02:58.8]} 5. g3 {[%clk
0:02:54.1]} 5... Bd6 {[%clk 0:02:58.1]} 6. Bg2 {[%clk 0:02:50.4]} 6... c6 {[%clk
0:02:57.9]} 7. Ne2 {[%clk 0:02:48.7]} 7... h5 {[%clk 0:02:57.4]} 8. h4 {[%clk
0:02:42.9]} 8... f5 {[%clk 0:02:46.6]} 9. Nbc3 {[%clk 0:02:34.8]} 9... Nd7
{[%clk 0:02:45.8]} 10. Nf4 {[%clk 0:02:32.2]} 10... Nf6 {[%clk 0:02:45.3]} 11.
Nce2 {[%clk 0:02:28]} 11... Ne4 {[%clk 0:02:42.9]} 12. c3 {[%clk 0:02:21.7]}
12... Bd7 {[%clk 0:02:19.6]} 13. Qb3 {[%clk 0:02:18.5]} 13... b5 {[%clk
0:02:11.3]} 14. Nd3 {[%clk 0:02:02.8]} 14... O-O {[%clk 0:02:08.2]} 15. Nef4
{[%clk 0:01:57.4]} 15... Re8 {[%clk 0:02:05.9]} 16. O-O {[%clk 0:01:56.7]} 16...
Kg7 {[%clk 0:02:04.1]} 17. Qc2 {[%clk 0:01:51.4]} 17... Qf6 {[%clk 0:01:55.2]}
18. b3 {[%clk 0:01:44.7]} 18... Rh8 {[%clk 0:01:47.8]} 19. Bf3 {[%clk
0:01:41.1]} 19... g5 {[%clk 0:01:37.3]} 20. hxg5 {[%clk 0:01:18.4]} 20... Qxg5
{[%clk 0:01:36.5]} 21. Bxe4 {[%clk 0:00:20]} 21... fxe4 {[%clk 0:01:34.7]} 22.
Ne5 {[%clk 0:00:15.8]} 22... Bxe5 {[%clk 0:01:26.4]} 23. dxe5 {[%clk 0:00:16.7]}
23... h4 {[%clk 0:01:25.6]} 24. Kg2 {[%clk 0:00:13.9]} 24... Bg4 {[%clk
0:01:25.2]} 25. Rg1 {[%clk 0:00:05.3]} 25... hxg3 {[%clk 0:01:17.4]} 26. fxg3
{[%clk 0:00:04.9]} 26... Bf3+ {[%clk 0:01:16.8]} 27. Kf1 {[%clk 0:00:03.8]}
27... Qxe5 {[%clk 0:01:13.3]} 28. c4 {[%clk 0:00:02.5]} 28... Qxa1+ {[%clk
0:01:12.3]} 0-1

[Event "*** SCC Grand Prix: Titled Tuesday Blitz"]
[Site "Chess.com"]
[Date "2020.06.09"]
[Round "2"]
[White "AungTZ"]
[Black "2007checkmate"]
[Result "0-1"]
[WhiteElo "2107"]
[BlackElo "2411"]
[TimeControl "180+1"]
[EndTime "9:17:09 PDT"]
[Termination "2007checkmate won by resignation"]

1. e4 {[%clk 0:02:59.3]} 1... e5 {[%clk 0:02:58.6]} 2. Nf3 {[%clk 0:02:58.4]}
2... Nc6 {[%clk 0:02:59.1]} 3. d4 {[%clk 0:02:58.2]} 3... exd4 {[%clk 0:03:00]}
4. Nxd4 {[%clk 0:02:58.3]} 4... Nf6 {[%clk 0:03:00.6]} 5. Nc3 {[%clk 0:02:58.2]}
5... Bb4 {[%clk 0:03:00.1]} 6. Nxc6 {[%clk 0:02:57.7]} 6... bxc6 {[%clk
0:03:01]} 7. Bd3 {[%clk 0:02:57.4]} 7... d5 {[%clk 0:03:01.6]} 8. exd5 {[%clk
0:02:57.5]} 8... cxd5 {[%clk 0:03:02.5]} 9. O-O {[%clk 0:02:56.8]} 9... O-O
{[%clk 0:03:03]} 10. Bg5 {[%clk 0:02:50.9]} 10... c6 {[%clk 0:03:02.7]} 11. h3
{[%clk 0:02:50]} 11... Rb8 {[%clk 0:03:00.3]} 12. Qf3 {[%clk 0:02:48.7]} 12...
Bd6 {[%clk 0:02:56.4]} 13. Rab1 {[%clk 0:02:46.4]} 13... Be6 {[%clk 0:02:53.9]}
14. Ne2 {[%clk 0:02:42.3]} 14... Re8 {[%clk 0:02:50.8]} 15. Nd4 {[%clk
0:02:40.3]} 15... Bd7 {[%clk 0:02:45.9]} 16. b3 {[%clk 0:02:36.4]} 16... Be5
{[%clk 0:02:35.9]} 17. Nf5 {[%clk 0:02:32.2]} 17... Bxf5 {[%clk 0:02:12.8]} 18.
Qxf5 {[%clk 0:02:30.8]} 18... Qd7 {[%clk 0:02:11.4]} 19. Qf3 {[%clk 0:02:24.1]}
19... h6 {[%clk 0:02:10.5]} 20. Bd2 {[%clk 0:02:18.8]} 20... Ne4 {[%clk
0:02:04.7]} 21. Be3 {[%clk 0:02:09.9]} 21... Nc3 {[%clk 0:02:00.5]} 22. Rbe1
{[%clk 0:02:05]} 22... Nxa2 {[%clk 0:01:58.3]} 23. Bc5 {[%clk 0:01:24.7]} 23...
Nb4 {[%clk 0:01:41.9]} 24. Bf5 {[%clk 0:01:22.7]} 24... Qc7 {[%clk 0:01:35.9]}
25. c3 {[%clk 0:01:15.2]} 25... Na6 {[%clk 0:01:32.4]} 26. Be3 {[%clk
0:01:07.2]} 26... Rxb3 {[%clk 0:01:26.6]} 27. Bc2 {[%clk 0:01:06.8]} 27... Rxc3
{[%clk 0:01:23.1]} 28. Qe2 {[%clk 0:00:51.5]} 28... d4 {[%clk 0:01:19.2]} 29.
Qxa6 {[%clk 0:00:46]} 29... dxe3 {[%clk 0:01:18.8]} 30. Qa4 {[%clk 0:00:42]}
30... exf2+ {[%clk 0:01:17.4]} 31. Rxf2 {[%clk 0:00:39.3]} 31... Bh2+ {[%clk
0:01:16.4]} 32. Kf1 {[%clk 0:00:39.4]} 32... Rxe1+ {[%clk 0:01:15.7]} 33. Kxe1
{[%clk 0:00:36.3]} 33... Bg3 {[%clk 0:01:16.6]} 34. Qe4 {[%clk 0:00:35.5]} 34...
Bxf2+ {[%clk 0:01:09.5]} 35. Kxf2 {[%clk 0:00:36.4]} 35... Qg3+ {[%clk
0:01:08.9]} 36. Kf1 {[%clk 0:00:34]} 36... g6 {[%clk 0:01:04.3]} 37. Qe2 {[%clk
0:00:25]} 0-1

[Event "*** SCC Grand Prix: Titled Tuesday Blitz"]
[Site "Chess.com"]
[Date "2020.06.09"]
[Round "2"]
[White "Charlottemillard17"]
[Black "oskariot"]
[Result "0-1"]
[WhiteElo "1504"]
[BlackElo "2637"]
[TimeControl "180+1"]
[EndTime "9:17:12 PDT"]
[Termination "oskariot won by checkmate"]

1. e4 {[%clk 0:03:00.9]} 1... e6 {[%clk 0:02:31.1]} 2. d4 {[%clk 0:02:59.8]}
2... d5 {[%clk 0:02:29.9]} 3. Nd2 {[%clk 0:02:59.1]} 3... c5 {[%clk 0:02:29.3]}
4. c3 {[%clk 0:02:58.2]} 4... Nc6 {[%clk 0:02:27.2]} 5. Ngf3 {[%clk 0:02:54.1]}
5... cxd4 {[%clk 0:02:26.5]} 6. cxd4 {[%clk 0:02:52.7]} 6... dxe4 {[%clk
0:02:27]} 7. Nxe4 {[%clk 0:02:50]} 7... Bb4+ {[%clk 0:02:27.6]} 8. Bd2 {[%clk
0:02:40.7]} 8... Bxd2+ {[%clk 0:02:19.4]} 9. Qxd2 {[%clk 0:02:41.6]} 9... Nf6
{[%clk 0:02:20.3]} 10. Bd3 {[%clk 0:02:33.4]} 10... O-O {[%clk 0:02:15.2]} 11.
O-O {[%clk 0:02:25.5]} 11... h6 {[%clk 0:01:41.3]} 12. Bc2 {[%clk 0:02:08]}
12... Nd5 {[%clk 0:01:30.3]} 13. a3 {[%clk 0:01:56.8]} 13... b6 {[%clk
0:01:22.5]} 14. Ng3 {[%clk 0:01:53.5]} 14... f5 {[%clk 0:01:16.9]} 15. Rfe1
{[%clk 0:01:36.4]} 15... Qd6 {[%clk 0:01:16.8]} 16. Ne5 {[%clk 0:01:19.5]} 16...
Nxe5 {[%clk 0:01:16.8]} 17. dxe5 {[%clk 0:01:20.4]} 17... Qd7 {[%clk 0:01:01.3]}
18. Nh5 {[%clk 0:01:09.8]} 18... Bb7 {[%clk 0:00:58.5]} 19. Qd3 {[%clk
0:01:03.2]} 19... Rac8 {[%clk 0:00:55.5]} 20. Bb3 {[%clk 0:00:57.9]} 20... Qf7
{[%clk 0:00:51.3]} 21. Qh3 {[%clk 0:00:53.1]} 21... Rfd8 {[%clk 0:00:49.9]} 22.
Rad1 {[%clk 0:00:51.1]} 22... Kh7 {[%clk 0:00:48]} 23. Rc1 {[%clk 0:00:43.9]}
23... Rxc1 {[%clk 0:00:42.4]} 24. Rxc1 {[%clk 0:00:44.8]} 24... Qg6 {[%clk
0:00:42.6]} 25. Bxd5 {[%clk 0:00:36.2]} 25... Rxd5 {[%clk 0:00:38.6]} 26. Nf4
{[%clk 0:00:35.4]} 26... Qg5 {[%clk 0:00:38.4]} 27. Nxd5 {[%clk 0:00:35]} 27...
Qxc1# {[%clk 0:00:38]} 0-1

[Event "*** SCC Grand Prix: Titled Tuesday Blitz"]
[Site "Chess.com"]
[Date "2020.06.09"]
[Round "2"]
[White "Mazetovic"]
[Black "lachesisQ"]
[Result "0-1"]
[WhiteElo "2622"]
[BlackElo "3043"]
[TimeControl "180+1"]
[EndTime "9:17:13 PDT"]
[Termination "lachesisQ won by resignation"]

1. e4 {[%clk 0:03:00.9]} 1... c5 {[%clk 0:02:58]} 2. Nf3 {[%clk 0:03:00.7]} 2...
d6 {[%clk 0:02:58.1]} 3. Bb5+ {[%clk 0:03:00.5]} 3... Nd7 {[%clk 0:02:55.8]} 4.
Ba4 {[%clk 0:02:57]} 4... Nf6 {[%clk 0:02:54.5]} 5. O-O {[%clk 0:02:54.3]} 5...
e6 {[%clk 0:02:53.9]} 6. Re1 {[%clk 0:02:41.8]} 6... a6 {[%clk 0:02:53.4]} 7. c4
{[%clk 0:02:41.9]} 7... Be7 {[%clk 0:02:51]} 8. Nc3 {[%clk 0:02:41.7]} 8... O-O
{[%clk 0:02:50.3]} 9. Bxd7 {[%clk 0:02:40.7]} 9... Bxd7 {[%clk 0:02:46.3]} 10.
d4 {[%clk 0:02:41.6]} 10... cxd4 {[%clk 0:02:43.6]} 11. Nxd4 {[%clk 0:02:41.7]}
11... Rc8 {[%clk 0:02:43.5]} 12. Bg5 {[%clk 0:01:41.8]} 12... Rxc4 {[%clk
0:02:40.4]} 13. Qd3 {[%clk 0:01:42.1]} 13... Rc5 {[%clk 0:02:33.8]} 14. Bh4
{[%clk 0:01:36.1]} 14... b5 {[%clk 0:02:23.3]} 15. Rad1 {[%clk 0:01:34.6]} 15...
b4 {[%clk 0:02:21.4]} 16. Nce2 {[%clk 0:01:32.4]} 16... Qa8 {[%clk 0:02:14.1]}
17. Ng3 {[%clk 0:01:27.3]} 17... Rfc8 {[%clk 0:02:08.1]} 18. Nb3 {[%clk
0:01:25.8]} 18... Bb5 {[%clk 0:02:04.5]} 19. Qe3 {[%clk 0:01:21.7]} 19... Rc2
{[%clk 0:01:52.2]} 20. Bxf6 {[%clk 0:01:19]} 20... Bxf6 {[%clk 0:01:53.1]} 21.
Rxd6 {[%clk 0:01:15.1]} 21... Be5 {[%clk 0:01:39]} 22. Rd2 {[%clk 0:01:11.2]}
22... Rxb2 {[%clk 0:01:35.3]} 23. Rxb2 {[%clk 0:01:09]} 23... Bxb2 {[%clk
0:01:34.9]} 24. e5 {[%clk 0:01:08.4]} 24... Qd5 {[%clk 0:01:11]} 25. Nh5 {[%clk
0:01:06.8]} 25... Qd3 {[%clk 0:01:07.8]} 26. Qg5 {[%clk 0:01:04.5]} 26... Qg6
{[%clk 0:01:07.8]} 27. Qh4 {[%clk 0:01:02.8]} 27... Bxe5 {[%clk 0:00:59.7]} 28.
Rd1 {[%clk 0:00:56.4]} 28... h6 {[%clk 0:00:55.3]} 29. Ng3 {[%clk 0:00:53]}
29... Rc4 {[%clk 0:00:45.8]} 30. Qd8+ {[%clk 0:00:51.3]} 30... Kh7 {[%clk
0:00:46]} 31. Re1 {[%clk 0:00:48.2]} 31... Bc3 {[%clk 0:00:44.9]} 32. Rd1 {[%clk
0:00:42.2]} 32... Qc2 {[%clk 0:00:44.1]} 33. h3 {[%clk 0:00:41.5]} 33... Bf6
{[%clk 0:00:43.2]} 34. Rd2 {[%clk 0:00:40.1]} 34... Bxd8 {[%clk 0:00:42.2]} 0-1

[Event "*** SCC Grand Prix: Titled Tuesday Blitz"]
[Site "Chess.com"]
[Date "2020.06.09"]
[Round "2"]
[White "Maghalashvili"]
[Black "NateSolon"]
[Result "1-0"]
[WhiteElo "2766"]
[BlackElo "2518"]
[TimeControl "180+1"]
[EndTime "9:17:21 PDT"]
[Termination "Maghalashvili won by checkmate"]

1. Nf3 {[%clk 0:03:00.9]} 1... d5 {[%clk 0:03:00]} 2. g3 {[%clk 0:03:01.2]} 2...
c6 {[%clk 0:02:57.4]} 3. Bg2 {[%clk 0:03:01.5]} 3... Bg4 {[%clk 0:02:57]} 4. O-O
{[%clk 0:03:00.8]} 4... e6 {[%clk 0:02:55.7]} 5. c4 {[%clk 0:02:58.6]} 5... Nf6
{[%clk 0:02:54.8]} 6. h3 {[%clk 0:02:56.9]} 6... Bh5 {[%clk 0:02:48.7]} 7. d4
{[%clk 0:02:54.8]} 7... Nbd7 {[%clk 0:02:47.9]} 8. cxd5 {[%clk 0:02:52.1]} 8...
exd5 {[%clk 0:02:45.7]} 9. Qb3 {[%clk 0:02:50.3]} 9... Qb6 {[%clk 0:02:43.2]}
10. Qe3+ {[%clk 0:02:48.6]} 10... Be7 {[%clk 0:02:27.1]} 11. Nh4 {[%clk
0:02:49.1]} 11... Bg6 {[%clk 0:02:27.2]} 12. Nc3 {[%clk 0:02:47]} 12... Kf8
{[%clk 0:02:18.3]} 13. Nxg6+ {[%clk 0:02:44.5]} 13... hxg6 {[%clk 0:02:17.8]}
14. Qd3 {[%clk 0:02:44.2]} 14... Re8 {[%clk 0:02:10.7]} 15. Rb1 {[%clk
0:02:38.4]} 15... a5 {[%clk 0:01:29.1]} 16. a3 {[%clk 0:02:35.8]} 16... Qa7
{[%clk 0:01:23.3]} 17. b4 {[%clk 0:02:30]} 17... axb4 {[%clk 0:01:23.5]} 18.
axb4 {[%clk 0:02:28.6]} 18... b5 {[%clk 0:01:23.7]} 19. e4 {[%clk 0:02:26.9]}
19... dxe4 {[%clk 0:01:19.7]} 20. Nxe4 {[%clk 0:02:24.8]} 20... Nd5 {[%clk
0:01:16]} 21. Nc5 {[%clk 0:02:21.5]} 21... N7b6 {[%clk 0:01:10.5]} 22. Re1
{[%clk 0:02:17.9]} 22... g5 {[%clk 0:00:52.3]} 23. Qf5 {[%clk 0:02:11.8]} 23...
g6 {[%clk 0:00:48.8]} 24. Qe5 {[%clk 0:02:04.6]} 24... Rh5 {[%clk 0:00:31.2]}
25. Bxd5 {[%clk 0:01:36.4]} 25... Nxd5 {[%clk 0:00:30.8]} 26. Bxg5 {[%clk
0:01:34.9]} 26... f6 {[%clk 0:00:21]} 27. Qe6 {[%clk 0:01:28.5]} 27... Rxg5
{[%clk 0:00:20.8]} 28. h4 {[%clk 0:01:24.8]} 28... Rf5 {[%clk 0:00:20]} 29. Ra1
{[%clk 0:01:22.2]} 29... Qc7 {[%clk 0:00:16]} 30. Qxd5 {[%clk 0:01:11.9]} 30...
cxd5 {[%clk 0:00:12.8]} 31. Ne6+ {[%clk 0:01:10.4]} 31... Kf7 {[%clk 0:00:13.3]}
32. Nxc7 {[%clk 0:01:11.1]} 32... Rc8 {[%clk 0:00:14]} 33. Nxb5 {[%clk
0:01:07.4]} 33... Rb8 {[%clk 0:00:14.1]} 34. Ra7 {[%clk 0:01:06.3]} 34... Rxb5
{[%clk 0:00:10.6]} 35. Raxe7+ {[%clk 0:01:05.4]} 35... Kg8 {[%clk 0:00:10.5]}
36. Re8+ {[%clk 0:01:05.6]} 36... Kg7 {[%clk 0:00:10.6]} 37. R1e7+ {[%clk
0:01:06.5]} 37... Kh6 {[%clk 0:00:09.5]} 38. Rh8# {[%clk 0:01:07.4]} 1-0

[Event "*** SCC Grand Prix: Titled Tuesday Blitz"]
[Site "Chess.com"]
[Date "2020.06.09"]
[Round "2"]
[White "kran900"]
[Black "quesfr"]
[Result "1/2-1/2"]
[WhiteElo "2455"]
[BlackElo "2257"]
[TimeControl "180+1"]
[EndTime "9:17:21 PDT"]
[Termination "Game drawn by repetition"]

1. e4 {[%clk 0:03:00.9]} 1... c5 {[%clk 0:02:58.3]} 2. Nf3 {[%clk 0:02:59.6]}
2... d6 {[%clk 0:02:57.2]} 3. d4 {[%clk 0:02:59]} 3... cxd4 {[%clk 0:02:58.1]}
4. Nxd4 {[%clk 0:02:59.3]} 4... Nf6 {[%clk 0:02:56.7]} 5. Nc3 {[%clk 0:02:59.9]}
5... g6 {[%clk 0:02:56.8]} 6. f3 {[%clk 0:02:52.3]} 6... Bg7 {[%clk 0:02:55.6]}
7. Be3 {[%clk 0:02:52.9]} 7... O-O {[%clk 0:02:54.1]} 8. Bc4 {[%clk 0:02:51.7]}
8... Nc6 {[%clk 0:02:53.3]} 9. Qd2 {[%clk 0:02:51.4]} 9... Bd7 {[%clk
0:02:53.5]} 10. O-O-O {[%clk 0:02:50]} 10... Qc7 {[%clk 0:02:45.6]} 11. Bb3
{[%clk 0:02:42.1]} 11... Na5 {[%clk 0:02:42.6]} 12. h4 {[%clk 0:02:34]} 12...
Nc4 {[%clk 0:02:39.2]} 13. Bxc4 {[%clk 0:02:32.4]} 13... Qxc4 {[%clk 0:02:40.1]}
14. h5 {[%clk 0:02:31.1]} 14... b5 {[%clk 0:02:31.4]} 15. Kb1 {[%clk 0:02:09.3]}
15... b4 {[%clk 0:02:21.1]} 16. Nce2 {[%clk 0:02:08.8]} 16... Rac8 {[%clk
0:02:14.8]} 17. Bh6 {[%clk 0:02:08]} 17... Bxh6 {[%clk 0:01:24.3]} 18. Qxh6
{[%clk 0:02:06.4]} 18... e5 {[%clk 0:01:24.9]} 19. Qg5 {[%clk 0:01:55.3]} 19...
Ne8 {[%clk 0:00:10]} 20. hxg6 {[%clk 0:01:27]} 20... fxg6 {[%clk 0:00:10.9]} 21.
Rxh7 {[%clk 0:01:18.2]} 21... Kxh7 {[%clk 0:00:10.7]} 22. Rh1+ {[%clk
0:01:18.1]} 22... Kg7 {[%clk 0:00:08]} 23. Qh6+ {[%clk 0:01:13.3]} 23... Kf7
{[%clk 0:00:08.1]} 24. b3 {[%clk 0:01:09.1]} 24... Qc7 {[%clk 0:00:06.7]} 25.
Qh7+ {[%clk 0:01:03.1]} 25... Ng7 {[%clk 0:00:06.9]} 26. Rh6 {[%clk 0:01:03.2]}
26... exd4 {[%clk 0:00:02.5]} 27. Qxg6+ {[%clk 0:01:03.2]} 27... Kg8 {[%clk
0:00:02]} 28. Qh7+ {[%clk 0:01:01.4]} 28... Kf7 {[%clk 0:00:02.2]} 29. Qg6+
{[%clk 0:01:01.2]} 29... Kg8 {[%clk 0:00:02.5]} 30. Qh7+ {[%clk 0:01:01.2]}
30... Kf7 {[%clk 0:00:02.9]} 31. Qg6+ {[%clk 0:01:01.6]} 1/2-1/2

[Event "*** SCC Grand Prix: Titled Tuesday Blitz"]
[Site "Chess.com"]
[Date "2020.06.09"]
[Round "2"]
[White "esrosenberg"]
[Black "Treacherous_horse64"]
[Result "0-1"]
[WhiteElo "2219"]
[BlackElo "2446"]
[TimeControl "180+1"]
[EndTime "9:17:21 PDT"]
[Termination "Treacherous_horse64 won on time"]

1. Nf3 {[%clk 0:03:00.9]} 1... Nf6 {[%clk 0:02:59.4]} 2. c4 {[%clk 0:03:00.1]}
2... e6 {[%clk 0:02:59.4]} 3. Nc3 {[%clk 0:02:59.3]} 3... d5 {[%clk 0:02:58.4]}
4. d4 {[%clk 0:02:58.6]} 4... dxc4 {[%clk 0:02:58.2]} 5. e3 {[%clk 0:02:53.8]}
5... a6 {[%clk 0:02:57.8]} 6. Bxc4 {[%clk 0:02:53.4]} 6... b5 {[%clk 0:02:57.8]}
7. Be2 {[%clk 0:02:52]} 7... Bb7 {[%clk 0:02:58.1]} 8. O-O {[%clk 0:02:50.6]}
8... Nbd7 {[%clk 0:02:58.4]} 9. a3 {[%clk 0:02:49.3]} 9... c5 {[%clk 0:02:58.8]}
10. b3 {[%clk 0:02:32.7]} 10... Be7 {[%clk 0:02:56.7]} 11. Bb2 {[%clk
0:02:31.9]} 11... O-O {[%clk 0:02:54.6]} 12. Re1 {[%clk 0:02:26.1]} 12... Qb6
{[%clk 0:02:50.5]} 13. Rc1 {[%clk 0:02:17.8]} 13... Rac8 {[%clk 0:02:50.1]} 14.
h3 {[%clk 0:02:16.2]} 14... Rfd8 {[%clk 0:02:49.6]} 15. Rc2 {[%clk 0:02:06.5]}
15... Nf8 {[%clk 0:02:34.9]} 16. Qa1 {[%clk 0:02:02.9]} 16... cxd4 {[%clk
0:02:29.9]} 17. exd4 {[%clk 0:01:43.3]} 17... Ng6 {[%clk 0:02:21.3]} 18. d5
{[%clk 0:01:31.9]} 18... exd5 {[%clk 0:02:13.5]} 19. Bd3 {[%clk 0:01:25.7]}
19... d4 {[%clk 0:02:00.6]} 20. Bxg6 {[%clk 0:00:55.3]} 20... hxg6 {[%clk
0:01:59.6]} 21. Rxe7 {[%clk 0:00:55]} 21... Bxf3 {[%clk 0:01:59.4]} 22. gxf3
{[%clk 0:00:50.6]} 22... dxc3 {[%clk 0:01:59]} 23. Rxc3 {[%clk 0:00:44.9]} 23...
Rxc3 {[%clk 0:01:51.6]} 24. Bxc3 {[%clk 0:00:45.8]} 24... Qc6 {[%clk 0:01:51.5]}
25. Bxf6 {[%clk 0:00:27.8]} 25... Qxf3 {[%clk 0:01:49.1]} 26. Bd4 {[%clk
0:00:07.8]} 26... Qd3 {[%clk 0:01:38.3]} 27. Be3 {[%clk 0:00:05.2]} 27... Qxb3
{[%clk 0:01:37.7]} 28. Qe5 {[%clk 0:00:03.2]} 28... Qb1+ {[%clk 0:01:22]} 29.
Kg2 {[%clk 0:00:03.4]} 29... Rd1 {[%clk 0:01:18.7]} 30. Re8+ {[%clk 0:00:03.5]}
30... Kh7 {[%clk 0:01:19.6]} 0-1

[Event "*** SCC Grand Prix: Titled Tuesday Blitz"]
[Site "Chess.com"]
[Date "2020.06.09"]
[Round "2"]
[White "Khvicha_Supatashvili"]
[Black "amiralfio"]
[Result "1-0"]
[WhiteElo "2713"]
[BlackElo "2377"]
[TimeControl "180+1"]
[EndTime "9:17:22 PDT"]
[Termination "Khvicha_Supatashvili won by resignation"]

1. d4 {[%clk 0:03:00.9]} 1... f5 {[%clk 0:02:56.4]} 2. Nc3 {[%clk 0:02:59.8]}
2... Nf6 {[%clk 0:02:51.3]} 3. Bg5 {[%clk 0:02:59.1]} 3... g6 {[%clk 0:02:46.1]}
4. Bxf6 {[%clk 0:02:56.4]} 4... exf6 {[%clk 0:02:47]} 5. e3 {[%clk 0:02:55.5]}
5... Be7 {[%clk 0:02:09.1]} 6. h4 {[%clk 0:02:48.3]} 6... d5 {[%clk 0:02:08.8]}
7. h5 {[%clk 0:02:44]} 7... g5 {[%clk 0:02:02.3]} 8. Bd3 {[%clk 0:02:43.4]} 8...
Be6 {[%clk 0:01:59.4]} 9. Qf3 {[%clk 0:02:38]} 9... Qd7 {[%clk 0:01:57.6]} 10.
Nge2 {[%clk 0:02:37.8]} 10... Nc6 {[%clk 0:01:45.5]} 11. a3 {[%clk 0:02:35.3]}
11... Bd6 {[%clk 0:01:38.5]} 12. Nb5 {[%clk 0:02:32.3]} 12... O-O-O {[%clk
0:01:04.6]} 13. Nxd6+ {[%clk 0:02:31.1]} 13... cxd6 {[%clk 0:01:04.5]} 14. c3
{[%clk 0:02:24.5]} 14... Kb8 {[%clk 0:00:58.6]} 15. O-O-O {[%clk 0:02:16.4]}
15... Rc8 {[%clk 0:00:54.9]} 16. Kb1 {[%clk 0:02:15.7]} 16... Rhe8 {[%clk
0:00:33.6]} 17. Ng3 {[%clk 0:02:08.1]} 17... f4 {[%clk 0:00:28.4]} 18. exf4
{[%clk 0:02:07.2]} 18... Bg4 {[%clk 0:00:28.4]} 19. Qxd5 {[%clk 0:02:05.6]}
19... Bxd1 {[%clk 0:00:24.4]} 20. Rxd1 {[%clk 0:01:40.5]} 20... gxf4 {[%clk
0:00:16.3]} 21. Ne4 {[%clk 0:01:39.8]} 21... f5 {[%clk 0:00:10.7]} 22. Nf6
{[%clk 0:01:33.2]} 22... Qe6 {[%clk 0:00:09.4]} 23. Qxe6 {[%clk 0:01:28.4]}
23... Rxe6 {[%clk 0:00:10.3]} 24. Nxh7 {[%clk 0:01:27.1]} 24... Ne7 {[%clk
0:00:06]} 25. Ng5 {[%clk 0:01:24.9]} 25... Rh6 {[%clk 0:00:06.4]} 26. Be2 {[%clk
0:01:23.7]} 26... Kc7 {[%clk 0:00:03.9]} 27. Bf3 {[%clk 0:01:20.9]} 27... Rg8
{[%clk 0:00:03.8]} 28. Nh3 {[%clk 0:01:20.3]} 28... Kd7 {[%clk 0:00:01.5]} 29.
Nxf4 {[%clk 0:01:19.6]} 29... Rh7 {[%clk 0:00:02]} 30. Bxb7 {[%clk 0:01:16.8]}
30... Ke8 {[%clk 0:00:01.5]} 31. Bf3 {[%clk 0:01:14.8]} 31... Rg5 {[%clk
0:00:02]} 32. Re1 {[%clk 0:01:14.5]} 32... Kd8 {[%clk 0:00:02.4]} 33. Ne6+
{[%clk 0:01:13.7]} 1-0

[Event "*** SCC Grand Prix: Titled Tuesday Blitz"]
[Site "Chess.com"]
[Date "2020.06.09"]
[Round "2"]
[White "SiddharthGMJagadeesh"]
[Black "julinha97"]
[Result "1/2-1/2"]
[WhiteElo "2420"]
[BlackElo "2147"]
[TimeControl "180+1"]
[EndTime "9:17:22 PDT"]
[Termination "Game drawn by agreement"]

1. d4 {[%clk 0:03:00.9]} 1... Nf6 {[%clk 0:02:58.2]} 2. Nf3 {[%clk 0:02:59.9]}
2... g6 {[%clk 0:02:57.3]} 3. g3 {[%clk 0:03:00.2]} 3... Bg7 {[%clk 0:02:57.2]}
4. Bg2 {[%clk 0:03:01.1]} 4... d6 {[%clk 0:02:57.6]} 5. O-O {[%clk 0:03:01.8]}
5... O-O {[%clk 0:02:57.8]} 6. a4 {[%clk 0:03:01.9]} 6... a5 {[%clk 0:02:51.6]}
7. Nc3 {[%clk 0:03:01.9]} 7... Nc6 {[%clk 0:02:50.8]} 8. e4 {[%clk 0:03:01.7]}
8... Bg4 {[%clk 0:02:46.7]} 9. Be3 {[%clk 0:03:00]} 9... Nd7 {[%clk 0:02:45.9]}
10. h3 {[%clk 0:02:57.4]} 10... Bxf3 {[%clk 0:02:45.5]} 11. Bxf3 {[%clk
0:02:58.3]} 11... e5 {[%clk 0:02:45.7]} 12. d5 {[%clk 0:02:57.8]} 12... Nd4
{[%clk 0:02:45.6]} 13. Bg2 {[%clk 0:02:58.3]} 13... c5 {[%clk 0:02:42.1]} 14.
Nb5 {[%clk 0:02:55.6]} 14... Nxb5 {[%clk 0:02:30.2]} 15. axb5 {[%clk 0:02:56.5]}
15... a4 {[%clk 0:02:25.7]} 16. c4 {[%clk 0:02:48.3]} 16... Nb6 {[%clk
0:02:22.6]} 17. Qe2 {[%clk 0:02:47.6]} 17... f5 {[%clk 0:02:21.2]} 18. exf5
{[%clk 0:02:45.2]} 18... gxf5 {[%clk 0:02:22.1]} 19. f4 {[%clk 0:02:45.9]} 19...
e4 {[%clk 0:02:21.5]} 20. Rf2 {[%clk 0:02:35.5]} 20... Bd4 {[%clk 0:02:16.8]}
21. Rd1 {[%clk 0:02:31.8]} 21... Qf6 {[%clk 0:02:14.2]} 22. Kh2 {[%clk
0:02:25.3]} 22... a3 {[%clk 0:02:13.2]} 23. bxa3 {[%clk 0:02:04.7]} 23... Rxa3
{[%clk 0:02:14.1]} 24. Bxd4 {[%clk 0:02:01.4]} 24... cxd4 {[%clk 0:02:14.1]} 25.
Qb2 {[%clk 0:02:01.9]} 25... Nxc4 {[%clk 0:01:59.6]} 26. Qxd4 {[%clk 0:02:01.6]}
26... Qxd4 {[%clk 0:01:59.3]} 27. Rxd4 {[%clk 0:02:01.7]} 27... Ne3 {[%clk
0:01:39.5]} 28. g4 {[%clk 0:01:53.9]} 28... Rd3 {[%clk 0:00:59.7]} 29. Rxd3
{[%clk 0:01:47.8]} 29... exd3 {[%clk 0:01:00.6]} 30. Rd2 {[%clk 0:01:48.1]}
30... fxg4 {[%clk 0:00:58.3]} 31. Rxd3 {[%clk 0:01:48.3]} 31... Nxg2 {[%clk
0:00:54.9]} 32. Kxg2 {[%clk 0:01:44.7]} 32... gxh3+ {[%clk 0:00:49.2]} 33. Kxh3
{[%clk 0:01:36.6]} 33... Rxf4 {[%clk 0:00:49.4]} 34. Rc3 {[%clk 0:01:37.3]}
34... Rd4 {[%clk 0:00:45.2]} 35. Rc8+ {[%clk 0:01:34.1]} 35... Kg7 {[%clk
0:00:45.4]} 36. Rc7+ {[%clk 0:01:34.3]} 36... Kg6 {[%clk 0:00:45.9]} 37. Rxb7
{[%clk 0:01:34.2]} 37... Rxd5 {[%clk 0:00:46.4]} 38. b6 {[%clk 0:01:34.3]} 38...
Rb5 {[%clk 0:00:46]} 39. Rb8 {[%clk 0:01:34.4]} 39... Rb4 {[%clk 0:00:43.4]} 40.
b7 {[%clk 0:01:32.2]} 40... Kg7 {[%clk 0:00:43.7]} 41. Kg3 {[%clk 0:01:28.6]}
41... h5 {[%clk 0:00:41.5]} 42. Rd8 {[%clk 0:01:26.7]} 42... Rxb7 {[%clk
0:00:37.3]} 43. Rxd6 {[%clk 0:01:27.2]} 43... Rb4 {[%clk 0:00:30.5]} 44. Rd5
{[%clk 0:01:27.1]} 44... Kg6 {[%clk 0:00:29.4]} 45. Rd6+ {[%clk 0:01:27.3]}
45... Kg5 {[%clk 0:00:29.7]} 46. Rd5+ {[%clk 0:01:27.6]} 46... Kg6 {[%clk
0:00:29.1]} 47. Ra5 {[%clk 0:01:27.8]} 47... Rb3+ {[%clk 0:00:25.6]} 48. Kh4
{[%clk 0:01:27.3]} 48... Rb4+ {[%clk 0:00:24.2]} 49. Kg3 {[%clk 0:01:27.6]}
1/2-1/2